[Event "Titled Tuesday Blitz May 16 Early 2023"]
[White "Batchuluun, Tsegmed"]
[Black "Korpics, Zsolt"]
[WhiteFideId "4900847"]
[BlackFideId "705241"]
[WhiteElo "2386"]
[BlackElo "2340"]
[Result "1-0"]
[Round "01"]
[TimeControl "180+2"]
[Date "2023.05.16"]
[WhiteClock "0:02:00"]
[BlackClock "0:00:07"]

1. d4 {[%clk 0:03:00]}  Nf6 {[%clk 0:02:59]} 2. c4 {[%clk 0:03:00]}  e6 {[%clk 0:02:59]} 3. Nc3 {[%clk 0:03:00]}  Bb4 {[%clk 0:02:59]} 4. e3 {[%clk 0:03:00]}  O-O {[%clk 0:02:59]} 5. Bd3 {[%clk 0:03:00]}  c5 {[%clk 0:02:59]} 6. Nf3 {[%clk 0:02:58]}  d5 {[%clk 0:02:58]} 7. O-O {[%clk 0:02:57]}  cxd4 {[%clk 0:02:56]} 8. exd4 {[%clk 0:02:57]}  dxc4 {[%clk 0:02:56]} 9. Bxc4 {[%clk 0:02:57]}  b6 {[%clk 0:02:56]} 10. Qe2 {[%clk 0:02:56]}  Bxc3 {[%clk 0:02:52]} 11. bxc3 {[%clk 0:02:55]}  Bb7 {[%clk 0:02:53]} 12. Bg5 {[%clk 0:02:50]}  Nbd7 {[%clk 0:02:53]} 13. Rac1 {[%clk 0:02:42]}  Qc7 {[%clk 0:02:50]} 14. Bd3 {[%clk 0:02:39]}  h6 {[%clk 0:02:40]} 15. Bh4 {[%clk 0:02:39]}  Qc6 {[%clk 0:01:47]} 16. c4 {[%clk 0:02:23]}  Rfe8 {[%clk 0:01:45]} 17. Rfe1 {[%clk 0:02:22]}  Rac8 {[%clk 0:01:05]} 18. c5 {[%clk 0:02:18]}  bxc5 {[%clk 0:01:03]} 19. Bxf6 {[%clk 0:02:15]}  gxf6 {[%clk 0:00:54]} 20. Bb5 {[%clk 0:02:15]}  Qc7 {[%clk 0:00:23]} 21. dxc5 {[%clk 0:02:15]}  Qd8 {[%clk 0:00:23]} 22. c6 {[%clk 0:02:13]}  Bxc6 {[%clk 0:00:14]} 23. Rxc6 {[%clk 0:02:11]}  Qa5 {[%clk 0:00:11]} 24. Rxc8 {[%clk 0:02:09]}  Rxc8 {[%clk 0:00:11]} 25. Bxd7 {[%clk 0:02:09]}  Rd8 {[%clk 0:00:11]} 26. Bb5 {[%clk 0:02:07]}  a6 {[%clk 0:00:12]} 27. Bxa6 {[%clk 0:02:06]}  e5 {[%clk 0:00:11]} 28. Bc4 {[%clk 0:02:05]}  Qb4 {[%clk 0:00:09]} 29. g3 {[%clk 0:02:02]}  Rc8 {[%clk 0:00:09]} 30. Bb3 {[%clk 0:02:02]}  Rd8 {[%clk 0:00:09]} 31. Qe4 {[%clk 0:02:01]}  Kf8 {[%clk 0:00:07]} 32. Qxb4+ {[%clk 0:02:00]} 1-0


[Site "https://www.chess.com"]

[Event "Titled Tuesday Blitz May 16 Early 2023"]
[White "Fajdetic, Hrvoje"]
[Black "Skliarov, Viktor"]
[WhiteFideId "14501945"]
[BlackFideId "14106736"]
[WhiteElo "2185"]
[BlackElo "2317"]
[Result "0-1"]
[Round "01"]
[TimeControl "180+2"]
[Date "2023.05.16"]
[WhiteClock "0:00:00"]
[BlackClock "0:00:07"]

1. d4 {[%clk 0:02:59]}  Nf6 {[%clk 0:02:57]} 2. Bf4 {[%clk 0:02:59]}  g6 {[%clk 0:02:56]} 3. Nc3 {[%clk 0:02:58]}  Bg7 {[%clk 0:02:56]} 4. e4 {[%clk 0:02:58]}  d6 {[%clk 0:02:56]} 5. Qd2 {[%clk 0:02:58]}  c6 {[%clk 0:02:56]} 6. O-O-O {[%clk 0:02:57]}  b5 {[%clk 0:02:49]} 7. f3 {[%clk 0:02:57]}  Qa5 {[%clk 0:02:48]} 8. Kb1 {[%clk 0:02:56]}  Be6 {[%clk 0:02:26]} 9. d5 {[%clk 0:02:28]}  cxd5 {[%clk 0:02:25]} 10. exd5 {[%clk 0:01:57]}  b4 {[%clk 0:02:12]} 11. dxe6 {[%clk 0:01:36]}  bxc3 {[%clk 0:02:11]} 12. exf7+ {[%clk 0:01:35]}  Kxf7 {[%clk 0:01:57]} 13. Qxc3 {[%clk 0:01:31]}  Qxc3 {[%clk 0:01:55]} 14. bxc3 {[%clk 0:01:32]}  Rc8 {[%clk 0:01:51]} 15. c4 {[%clk 0:01:29]}  Nc6 {[%clk 0:01:48]} 16. Nh3 {[%clk 0:01:21]}  h6 {[%clk 0:01:37]} 17. Nf2 {[%clk 0:01:19]}  Rab8+ {[%clk 0:01:30]} 18. Kc1 {[%clk 0:01:19]}  Nh5 {[%clk 0:01:24]} 19. Nd3 {[%clk 0:00:45]}  Nxf4 {[%clk 0:01:14]} 20. Nxf4 {[%clk 0:00:46]}  Rb2 {[%clk 0:01:08]} 21. Bd3 {[%clk 0:00:18]}  g5 {[%clk 0:01:03]} 22. Nd5 {[%clk 0:00:18]}  Rxa2 {[%clk 0:01:00]} 23. Rdf1 {[%clk 0:00:16]}  Ne5 {[%clk 0:00:39]} 24. Kd2 {[%clk 0:00:14]}  Nxc4+ {[%clk 0:00:37]} 25. Bxc4 {[%clk 0:00:15]}  Rxc4 {[%clk 0:00:38]} 26. Ne3 {[%clk 0:00:11]}  Rd4+ {[%clk 0:00:23]} 27. Ke2 {[%clk 0:00:10]}  Rb4 {[%clk 0:00:23]} 28. Rb1 {[%clk 0:00:09]}  Rxb1 {[%clk 0:00:19]} 29. Rxb1 {[%clk 0:00:10]}  a5 {[%clk 0:00:20]} 30. Rb7 {[%clk 0:00:10]}  Ke6 {[%clk 0:00:16]} 31. g4 {[%clk 0:00:07]}  a4 {[%clk 0:00:14]} 32. Nf5 {[%clk 0:00:07]}  Bf6 {[%clk 0:00:15]} 33. Kd3 {[%clk 0:00:06]}  a3 {[%clk 0:00:15]} 34. c3 {[%clk 0:00:05]}  Rxh2 {[%clk 0:00:15]} 35. Ra7 {[%clk 0:00:03]}  a2 {[%clk 0:00:15]} 36. Nd4+ {[%clk 0:00:01]}  Kf7 {[%clk 0:00:11]} 37. Nf5 {[%clk 0:00:00]}  Kg6 {[%clk 0:00:07]} 0-1


[Site "https://www.chess.com"]

[Event "Titled Tuesday Blitz May 16 Early 2023"]
[White "Nastase, Robert-Paul"]
[Black "Mamedov, Edgar"]
[WhiteFideId "1221175"]
[BlackFideId "13739980"]
[WhiteElo "2175"]
[BlackElo "2317"]
[Result "1/2-1/2"]
[Round "01"]
[TimeControl "180+2"]
[Date "2023.05.16"]
[WhiteClock "0:00:14"]
[BlackClock "0:00:52"]

1. e4 {[%clk 0:02:59]}  Nc6 {[%clk 0:02:58]} 2. Nf3 {[%clk 0:02:52]}  d6 {[%clk 0:02:55]} 3. Nc3 {[%clk 0:02:36]}  Nf6 {[%clk 0:02:54]} 4. d4 {[%clk 0:02:31]}  g6 {[%clk 0:02:54]} 5. Bc4 {[%clk 0:02:24]}  Bg7 {[%clk 0:02:52]} 6. O-O {[%clk 0:02:21]}  O-O {[%clk 0:02:52]} 7. h3 {[%clk 0:02:11]}  e5 {[%clk 0:02:51]} 8. dxe5 {[%clk 0:01:58]}  dxe5 {[%clk 0:02:50]} 9. Bg5 {[%clk 0:01:59]}  h6 {[%clk 0:02:47]} 10. Bh4 {[%clk 0:01:57]}  g5 {[%clk 0:02:45]} 11. Bg3 {[%clk 0:01:54]}  Nh5 {[%clk 0:02:44]} 12. Bh2 {[%clk 0:01:25]}  Nf4 {[%clk 0:02:43]} 13. Qxd8 {[%clk 0:01:21]}  Rxd8 {[%clk 0:02:42]} 14. Rad1 {[%clk 0:01:22]}  Be6 {[%clk 0:02:41]} 15. Bxe6 {[%clk 0:01:22]}  fxe6 {[%clk 0:02:42]} 16. h4 {[%clk 0:01:17]}  g4 {[%clk 0:02:41]} 17. Nd2 {[%clk 0:01:15]}  Nd4 {[%clk 0:02:40]} 18. Bxf4 {[%clk 0:00:48]}  exf4 {[%clk 0:02:40]} 19. g3 {[%clk 0:00:42]}  f3 {[%clk 0:02:39]} 20. Nc4 {[%clk 0:00:34]}  Nxc2 {[%clk 0:02:38]} 21. Rc1 {[%clk 0:00:32]}  Nd4 {[%clk 0:02:38]} 22. h5 {[%clk 0:00:32]}  c5 {[%clk 0:02:33]} 23. Ne3 {[%clk 0:00:32]}  Bf6 {[%clk 0:02:19]} 24. Nxg4 {[%clk 0:00:31]}  Bg5 {[%clk 0:02:20]} 25. Rce1 {[%clk 0:00:28]}  Bd2 {[%clk 0:02:17]} 26. Rd1 {[%clk 0:00:19]}  Ne2+ {[%clk 0:02:14]} 27. Kh2 {[%clk 0:00:17]}  Nxc3 {[%clk 0:02:12]} 28. bxc3 {[%clk 0:00:17]}  Kg7 {[%clk 0:02:12]} 29. c4 {[%clk 0:00:15]}  Bc3 {[%clk 0:02:11]} 30. Rc1 {[%clk 0:00:13]}  Bd4 {[%clk 0:02:10]} 31. Rc2 {[%clk 0:00:12]}  b6 {[%clk 0:02:04]} 32. Rb1 {[%clk 0:00:13]}  Rd7 {[%clk 0:02:03]} 33. Rb3 {[%clk 0:00:14]}  Rad8 {[%clk 0:02:02]} 34. Rxf3 {[%clk 0:00:13]}  Rf8 {[%clk 0:01:54]} 35. Rxf8 {[%clk 0:00:12]}  Kxf8 {[%clk 0:01:55]} 36. f4 {[%clk 0:00:12]}  Rg7 {[%clk 0:01:53]} 37. Nxh6 {[%clk 0:00:12]}  Rh7 {[%clk 0:01:53]} 38. Ng4 {[%clk 0:00:12]}  Rxh5+ {[%clk 0:01:53]} 39. Kg2 {[%clk 0:00:13]}  Ke7 {[%clk 0:01:53]} 40. Nh2 {[%clk 0:00:14]}  Rh8 {[%clk 0:01:50]} 41. Nf3 {[%clk 0:00:15]}  e5 {[%clk 0:01:45]} 42. fxe5 {[%clk 0:00:14]}  Ke6 {[%clk 0:01:45]} 43. Rd2 {[%clk 0:00:14]}  Rd8 {[%clk 0:01:39]} 44. g4 {[%clk 0:00:13]}  Rg8 {[%clk 0:01:36]} 45. Kg3 {[%clk 0:00:12]}  Bxe5+ {[%clk 0:01:34]} 46. Nxe5 {[%clk 0:00:13]}  Kxe5 {[%clk 0:01:35]} 47. Kf3 {[%clk 0:00:13]}  Rf8+ {[%clk 0:01:31]} 48. Ke3 {[%clk 0:00:14]}  Rf1 {[%clk 0:01:28]} 49. Rd5+ {[%clk 0:00:15]}  Ke6 {[%clk 0:01:28]} 50. Rg5 {[%clk 0:00:14]}  Rc1 {[%clk 0:01:28]} 51. Rg7 {[%clk 0:00:13]}  Rxc4 {[%clk 0:01:25]} 52. Rxa7 {[%clk 0:00:11]}  Rc2 {[%clk 0:01:24]} 53. Ra6 {[%clk 0:00:10]}  Rb2 {[%clk 0:01:23]} 54. g5 {[%clk 0:00:11]}  Ke5 {[%clk 0:01:23]} 55. Ra7 {[%clk 0:00:08]}  Rg2 {[%clk 0:01:20]} 56. Rb7 {[%clk 0:00:06]}  Rxg5 {[%clk 0:01:16]} 57. Rxb6 {[%clk 0:00:06]}  Rg3+ {[%clk 0:01:16]} 58. Kd2 {[%clk 0:00:07]}  Kxe4 {[%clk 0:01:13]} 59. Kc2 {[%clk 0:00:07]}  Kd4 {[%clk 0:01:13]} 60. Rb3 {[%clk 0:00:07]}  Rg2+ {[%clk 0:01:10]} 61. Kb1 {[%clk 0:00:07]}  c4 {[%clk 0:01:09]} 62. Rh3 {[%clk 0:00:08]}  c3 {[%clk 0:01:09]} 63. Rh8 {[%clk 0:00:06]}  Rb2+ {[%clk 0:01:04]} 64. Kc1 {[%clk 0:00:05]}  Rxa2 {[%clk 0:00:56]} 65. Rd8+ {[%clk 0:00:06]}  Ke3 {[%clk 0:00:56]} 66. Re8+ {[%clk 0:00:06]}  Kd3 {[%clk 0:00:55]} 67. Rd8+ {[%clk 0:00:07]}  Kc4 {[%clk 0:00:55]} 68. Rc8+ {[%clk 0:00:07]}  Kb4 {[%clk 0:00:54]} 69. Rb8+ {[%clk 0:00:08]}  Kc5 {[%clk 0:00:53]} 70. Rc8+ {[%clk 0:00:08]}  Kd4 {[%clk 0:00:54]} 71. Rd8+ {[%clk 0:00:08]}  Ke5 {[%clk 0:00:54]} 72. Re8+ {[%clk 0:00:09]}  Kd6 {[%clk 0:00:53]} 73. Rc8 {[%clk 0:00:08]}  Ra3 {[%clk 0:00:53]} 74. Kc2 {[%clk 0:00:08]}  Kd5 {[%clk 0:00:53]} 75. Rxc3 {[%clk 0:00:08]}  Ra2+ {[%clk 0:00:53]} 76. Kd3 {[%clk 0:00:08]}  Rh2 {[%clk 0:00:53]} 77. Rb3 {[%clk 0:00:09]}  Rh3+ {[%clk 0:00:52]} 78. Kc2 {[%clk 0:00:10]}  Rh4 {[%clk 0:00:53]} 79. Rf3 {[%clk 0:00:10]}  Kc4 {[%clk 0:00:52]} 80. Rg3 {[%clk 0:00:10]}  Rh2+ {[%clk 0:00:52]} 81. Kb1 {[%clk 0:00:10]}  Rf2 {[%clk 0:00:52]} 82. Kc1 {[%clk 0:00:11]}  Kd4 {[%clk 0:00:52]} 83. Kb1 {[%clk 0:00:11]}  Ke4 {[%clk 0:00:53]} 84. Kc1 {[%clk 0:00:12]}  Kf4 {[%clk 0:00:53]} 85. Ra3 {[%clk 0:00:12]}  Re2 {[%clk 0:00:53]} 86. Kb1 {[%clk 0:00:13]}  Ke4 {[%clk 0:00:53]} 87. Kc1 {[%clk 0:00:13]}  Kd4 {[%clk 0:00:53]} 88. Kb1 {[%clk 0:00:14]}  Kc4 {[%clk 0:00:54]} 89. Kc1 {[%clk 0:00:14]}  Kb4 {[%clk 0:00:54]} 90. Rh3 {[%clk 0:00:15]}  Ra2 {[%clk 0:00:51]} 91. Kb1 {[%clk 0:00:15]}  Ra3 {[%clk 0:00:52]} 92. Rxa3 {[%clk 0:00:14]}  Kxa3 {[%clk 0:00:52]} 1/2-1/2


[Site "https://www.chess.com"]

[Event "Titled Tuesday Blitz May 16 Early 2023"]
[White "Vaglio Munoz, Jaime"]
[Black "bubeliang"]
[WhiteFideId "6500145"]
[WhiteElo "2199"]
[BlackElo "2626"]
[Result "1-0"]
[Round "01"]
[TimeControl "180+2"]
[Date "2023.05.16"]
[WhiteClock "0:01:08"]
[BlackClock "0:00:02"]

1. Nf3 {[%clk 0:02:59]}  Nf6 {[%clk 0:02:59]} 2. c4 {[%clk 0:02:56]}  g6 {[%clk 0:02:58]} 3. b3 {[%clk 0:02:56]}  Bg7 {[%clk 0:02:57]} 4. Bb2 {[%clk 0:02:56]}  O-O {[%clk 0:02:57]} 5. g3 {[%clk 0:02:57]}  c6 {[%clk 0:02:57]} 6. Bg2 {[%clk 0:02:56]}  d5 {[%clk 0:02:57]} 7. O-O {[%clk 0:02:56]}  Bf5 {[%clk 0:02:57]} 8. d3 {[%clk 0:02:55]}  Nbd7 {[%clk 0:02:56]} 9. Nbd2 {[%clk 0:02:54]}  Rc8 {[%clk 0:02:53]} 10. h3 {[%clk 0:02:54]}  Re8 {[%clk 0:02:51]} 11. g4 {[%clk 0:02:53]}  Be6 {[%clk 0:02:51]} 12. Ng5 {[%clk 0:02:50]}  Nf8 {[%clk 0:02:51]} 13. Nxe6 {[%clk 0:02:49]}  Nxe6 {[%clk 0:02:51]} 14. e3 {[%clk 0:02:48]}  Qd7 {[%clk 0:02:41]} 15. f4 {[%clk 0:02:47]}  Red8 {[%clk 0:02:40]} 16. Bxf6 {[%clk 0:02:36]}  Bxf6 {[%clk 0:02:38]} 17. d4 {[%clk 0:02:36]}  dxc4 {[%clk 0:02:30]} 18. Nxc4 {[%clk 0:02:35]}  c5 {[%clk 0:02:25]} 19. d5 {[%clk 0:02:30]}  Bxa1 {[%clk 0:02:20]} 20. Qxa1 {[%clk 0:02:31]}  Ng7 {[%clk 0:02:18]} 21. e4 {[%clk 0:02:30]}  e6 {[%clk 0:02:08]} 22. Ne5 {[%clk 0:02:22]}  Qc7 {[%clk 0:02:02]} 23. f5 {[%clk 0:02:22]}  exd5 {[%clk 0:02:01]} 24. fxg6 {[%clk 0:02:20]}  fxg6 {[%clk 0:01:59]} 25. Rf7 {[%clk 0:02:19]}  Qd6 {[%clk 0:01:31]} 26. exd5 {[%clk 0:02:01]}  Rc7 {[%clk 0:00:41]} 27. Rf2 {[%clk 0:01:42]}  Re8 {[%clk 0:00:31]} 28. Nc4 {[%clk 0:01:41]}  Qe7 {[%clk 0:00:28]} 29. d6 {[%clk 0:01:41]}  Qe1+ {[%clk 0:00:28]} 30. Qxe1 {[%clk 0:01:38]}  Rxe1+ {[%clk 0:00:29]} 31. Kh2 {[%clk 0:01:38]}  Rc8 {[%clk 0:00:29]} 32. Bd5+ {[%clk 0:01:38]}  Kh8 {[%clk 0:00:27]} 33. Rf7 {[%clk 0:01:36]}  b5 {[%clk 0:00:24]} 34. d7 {[%clk 0:01:33]}  Rd8 {[%clk 0:00:23]} 35. Na5 {[%clk 0:01:28]}  h5 {[%clk 0:00:08]} 36. Nb7 {[%clk 0:01:26]}  Rxd7 {[%clk 0:00:08]} 37. Rxd7 {[%clk 0:01:26]}  h4 {[%clk 0:00:05]} 38. Nxc5 {[%clk 0:01:24]}  Re2+ {[%clk 0:00:05]} 39. Bg2 {[%clk 0:01:22]}  Rxa2 {[%clk 0:00:04]} 40. Ne4 {[%clk 0:01:21]}  Ne6 {[%clk 0:00:03]} 41. Re7 {[%clk 0:01:20]}  Nf4 {[%clk 0:00:03]} 42. Nf6 {[%clk 0:01:19]}  Rxg2+ {[%clk 0:00:02]} 43. Kh1 {[%clk 0:01:19]}  Rg1+ {[%clk 0:00:02]} 44. Kxg1 {[%clk 0:01:18]}  Nxh3+ {[%clk 0:00:03]} 45. Kh2 {[%clk 0:01:18]}  Ng5 {[%clk 0:00:04]} 46. Rxa7 {[%clk 0:01:14]}  b4 {[%clk 0:00:04]} 47. Rb7 {[%clk 0:01:14]}  Nf3+ {[%clk 0:00:04]} 48. Kh1 {[%clk 0:01:13]}  Ng5 {[%clk 0:00:04]} 49. Rc7 {[%clk 0:01:12]}  h3 {[%clk 0:00:04]} 50. Kh2 {[%clk 0:01:11]}  Nf3+ {[%clk 0:00:03]} 51. Kxh3 {[%clk 0:01:11]}  Ng5+ {[%clk 0:00:03]} 52. Kg2 {[%clk 0:01:10]}  Nf7 {[%clk 0:00:01]} 53. Rxf7 {[%clk 0:01:08]}  g5 {[%clk 0:00:02]} 54. Rh7# {[%clk 0:01:08]} 1-0


[Site "https://www.chess.com"]

[Event "Titled Tuesday Blitz May 16 Early 2023"]
[White "drdaro"]
[Black "Martinez Ramirez, Lennis"]
[BlackFideId "3509079"]
[WhiteElo "2343"]
[BlackElo "2410"]
[Result "0-1"]
[Round "01"]
[TimeControl "180+2"]
[Date "2023.05.16"]
[WhiteClock "0:00:12"]
[BlackClock "0:01:14"]

1. d4 {[%clk 0:02:59]}  d5 {[%clk 0:02:59]} 2. Nc3 {[%clk 0:02:58]}  c6 {[%clk 0:02:58]} 3. Bf4 {[%clk 0:02:57]}  Nf6 {[%clk 0:02:57]} 4. e3 {[%clk 0:02:57]}  b5 {[%clk 0:02:57]} 5. a3 {[%clk 0:02:57]}  Bf5 {[%clk 0:02:56]} 6. Nf3 {[%clk 0:02:57]}  e6 {[%clk 0:02:56]} 7. Ne5 {[%clk 0:02:58]}  Nfd7 {[%clk 0:02:56]} 8. g4 {[%clk 0:02:57]}  Bg6 {[%clk 0:02:56]} 9. h4 {[%clk 0:02:57]}  Nxe5 {[%clk 0:02:56]} 10. Bxe5 {[%clk 0:02:55]}  h5 {[%clk 0:02:55]} 11. g5 {[%clk 0:02:54]}  Nd7 {[%clk 0:02:49]} 12. Bg3 {[%clk 0:02:52]}  Be7 {[%clk 0:02:38]} 13. Be2 {[%clk 0:02:50]}  a5 {[%clk 0:02:36]} 14. O-O {[%clk 0:02:48]}  Nb6 {[%clk 0:02:23]} 15. Bd3 {[%clk 0:02:19]}  O-O {[%clk 0:02:22]} 16. Be2 {[%clk 0:02:16]}  Nc4 {[%clk 0:02:18]} 17. Ra2 {[%clk 0:02:05]}  b4 {[%clk 0:02:16]} 18. Nb1 {[%clk 0:01:44]}  f6 {[%clk 0:02:08]} 19. gxf6 {[%clk 0:01:38]}  Rxf6 {[%clk 0:02:02]} 20. Bxh5 {[%clk 0:01:38]}  Bxh5 {[%clk 0:01:54]} 21. Qxh5 {[%clk 0:01:39]}  Rh6 {[%clk 0:01:54]} 22. Qg4 {[%clk 0:01:40]}  Bxh4 {[%clk 0:01:53]} 23. Bxh4 {[%clk 0:01:40]}  Rxh4 {[%clk 0:01:47]} 24. Qxe6+ {[%clk 0:01:39]}  Kh8 {[%clk 0:01:47]} 25. Qf5 {[%clk 0:00:59]}  Qe7 {[%clk 0:01:34]} 26. Re1 {[%clk 0:00:32]}  Rf8 {[%clk 0:01:33]} 27. Qd3 {[%clk 0:00:31]}  Qg5+ {[%clk 0:01:14]} 28. Kf1 {[%clk 0:00:12]}  Rh2 {[%clk 0:01:14]} 0-1


[Site "https://www.chess.com"]

[Event "Titled Tuesday Blitz May 16 Early 2023"]
[White "Jeet, Jain"]
[Black "Llanos, Guillermo"]
[WhiteFideId "5073022"]
[BlackFideId "100358"]
[WhiteElo "2067"]
[BlackElo "2225"]
[Result "1-0"]
[Round "01"]
[TimeControl "180+2"]
[Date "2023.05.16"]
[WhiteClock "0:01:13"]
[BlackClock "0:00:37"]

1. d4 {[%clk 0:02:56]}  Nf6 {[%clk 0:02:57]} 2. Nf3 {[%clk 0:02:56]}  b6 {[%clk 0:02:57]} 3. Bf4 {[%clk 0:02:56]}  Bb7 {[%clk 0:02:56]} 4. e3 {[%clk 0:02:57]}  d6 {[%clk 0:02:56]} 5. c4 {[%clk 0:02:56]}  g6 {[%clk 0:02:53]} 6. Nc3 {[%clk 0:02:57]}  Bg7 {[%clk 0:02:53]} 7. Be2 {[%clk 0:02:57]}  O-O {[%clk 0:02:53]} 8. h3 {[%clk 0:02:58]}  c5 {[%clk 0:02:53]} 9. d5 {[%clk 0:02:57]}  Nh5 {[%clk 0:02:37]} 10. Bh2 {[%clk 0:02:57]}  Bxc3+ {[%clk 0:02:37]} 11. bxc3 {[%clk 0:02:57]}  f5 {[%clk 0:02:37]} 12. Ng5 {[%clk 0:02:56]}  Ng7 {[%clk 0:02:37]} 13. h4 {[%clk 0:02:47]}  h6 {[%clk 0:02:27]} 14. Nh3 {[%clk 0:02:44]}  Nd7 {[%clk 0:02:21]} 15. Nf4 {[%clk 0:02:39]}  Qe8 {[%clk 0:02:20]} 16. g4 {[%clk 0:02:28]}  fxg4 {[%clk 0:02:11]} 17. Bxg4 {[%clk 0:02:28]}  Ne5 {[%clk 0:02:11]} 18. Be2 {[%clk 0:02:23]}  Bc8 {[%clk 0:02:07]} 19. Rg1 {[%clk 0:02:22]}  Bf5 {[%clk 0:02:07]} 20. f3 {[%clk 0:02:17]}  Rf6 {[%clk 0:02:01]} 21. e4 {[%clk 0:02:17]}  Bc8 {[%clk 0:01:55]} 22. Qd2 {[%clk 0:02:16]}  Ba6 {[%clk 0:01:53]} 23. O-O-O {[%clk 0:02:03]}  Qa4 {[%clk 0:01:51]} 24. h5 {[%clk 0:02:00]}  g5 {[%clk 0:01:50]} 25. Ng6 {[%clk 0:01:57]}  Nxg6 {[%clk 0:01:46]} 26. hxg6 {[%clk 0:01:57]}  Bxc4 {[%clk 0:01:46]} 27. f4 {[%clk 0:01:50]}  Qa3+ {[%clk 0:01:42]} 28. Kb1 {[%clk 0:01:49]}  Bxe2 {[%clk 0:01:42]} 29. Qxe2 {[%clk 0:01:47]}  gxf4 {[%clk 0:01:33]} 30. Rd3 {[%clk 0:01:45]}  c4 {[%clk 0:01:32]} 31. Rf3 {[%clk 0:01:45]}  b5 {[%clk 0:01:30]} 32. Bxf4 {[%clk 0:01:43]}  Raf8 {[%clk 0:01:28]} 33. Rgf1 {[%clk 0:01:36]}  b4 {[%clk 0:01:26]} 34. Bc1 {[%clk 0:01:32]}  Qa4 {[%clk 0:01:20]} 35. Rxf6 {[%clk 0:01:32]}  exf6 {[%clk 0:01:18]} 36. Qxc4 {[%clk 0:01:31]}  Rb8 {[%clk 0:01:17]} 37. Bb2 {[%clk 0:01:19]}  Qe8 {[%clk 0:01:09]} 38. cxb4 {[%clk 0:01:17]}  Qxg6 {[%clk 0:01:08]} 39. Rxf6 {[%clk 0:01:14]}  Qg1+ {[%clk 0:01:06]} 40. Rf1 {[%clk 0:01:14]}  Qg6 {[%clk 0:01:03]} 41. Qd4 {[%clk 0:01:14]}  h5 {[%clk 0:00:37]} 42. Rg1 {[%clk 0:01:13]} 1-0


[Site "https://www.chess.com"]

[Event "Titled Tuesday Blitz May 16 Early 2023"]
[White "Korchmar, Vasiliy"]
[Black "Real_taiatai"]
[WhiteFideId "24131750"]
[WhiteElo "2370"]
[BlackElo "2322"]
[Result "1-0"]
[Round "01"]
[TimeControl "180+2"]
[Date "2023.05.16"]
[WhiteClock "0:00:09"]
[BlackClock "0:00:36"]

1. e4 {[%clk 0:03:00]}  c6 {[%clk 0:02:42]} 2. d4 {[%clk 0:02:59]}  d5 {[%clk 0:02:37]} 3. e5 {[%clk 0:02:59]}  Bf5 {[%clk 0:02:37]} 4. Nd2 {[%clk 0:02:59]}  e6 {[%clk 0:02:34]} 5. Nb3 {[%clk 0:03:00]}  a5 {[%clk 0:02:28]} 6. a4 {[%clk 0:02:59]}  Nd7 {[%clk 0:02:27]} 7. Nf3 {[%clk 0:02:59]}  h6 {[%clk 0:02:27]} 8. Be2 {[%clk 0:02:59]}  c5 {[%clk 0:02:27]} 9. dxc5 {[%clk 0:02:54]}  Nxc5 {[%clk 0:02:25]} 10. Nxc5 {[%clk 0:02:35]}  Bxc5 {[%clk 0:02:24]} 11. Bb5+ {[%clk 0:02:36]}  Kf8 {[%clk 0:02:24]} 12. O-O {[%clk 0:02:35]}  Ne7 {[%clk 0:02:24]} 13. Nd4 {[%clk 0:02:29]}  Qc7 {[%clk 0:02:03]} 14. Be3 {[%clk 0:02:15]}  Be4 {[%clk 0:01:51]} 15. c3 {[%clk 0:01:48]}  Nf5 {[%clk 0:01:49]} 16. Nxf5 {[%clk 0:01:46]}  Bxf5 {[%clk 0:01:49]} 17. Bd4 {[%clk 0:01:43]}  Ke7 {[%clk 0:01:49]} 18. Bd3 {[%clk 0:01:26]}  Bxd3 {[%clk 0:01:16]} 19. Qxd3 {[%clk 0:01:27]}  Rac8 {[%clk 0:01:16]} 20. Rfe1 {[%clk 0:01:19]}  Qb6 {[%clk 0:01:08]} 21. Bxc5+ {[%clk 0:01:09]}  Rxc5 {[%clk 0:01:08]} 22. Qg3 {[%clk 0:01:03]}  Rg8 {[%clk 0:01:03]} 23. Re2 {[%clk 0:01:00]}  Rc4 {[%clk 0:01:03]} 24. h3 {[%clk 0:00:56]}  Qc6 {[%clk 0:00:51]} 25. Qe3 {[%clk 0:00:26]}  Rd8 {[%clk 0:00:38]} 26. Rd2 {[%clk 0:00:18]}  Rc8 {[%clk 0:00:37]} 27. Qg3 {[%clk 0:00:17]}  Kf8 {[%clk 0:00:36]} 28. Qe3 {[%clk 0:00:16]}  Rxa4 {[%clk 0:00:35]} 29. Rxa4 {[%clk 0:00:15]}  Qxa4 {[%clk 0:00:36]} 30. Qb6 {[%clk 0:00:15]}  Qf4 {[%clk 0:00:34]} 31. Re2 {[%clk 0:00:13]}  Qc1+ {[%clk 0:00:33]} 32. Kh2 {[%clk 0:00:13]}  Qf4+ {[%clk 0:00:34]} 33. Kg1 {[%clk 0:00:13]}  Qc4 {[%clk 0:00:34]} 34. Qxb7 {[%clk 0:00:08]}  Rc7 {[%clk 0:00:35]} 35. Qb8+ {[%clk 0:00:08]}  Rc8 {[%clk 0:00:36]} 36. Qd6+ {[%clk 0:00:08]}  Kg8 {[%clk 0:00:36]} 37. Re3 {[%clk 0:00:08]}  a4 {[%clk 0:00:36]} 38. Rf3 {[%clk 0:00:04]}  Qe4 {[%clk 0:00:33]} 39. Rxf7 {[%clk 0:00:03]}  Kxf7 {[%clk 0:00:33]} 40. Qd7+ {[%clk 0:00:03]}  Kg8 {[%clk 0:00:31]} 41. Qxe6+ {[%clk 0:00:03]}  Kh7 {[%clk 0:00:31]} 42. Qxc8 {[%clk 0:00:04]}  Qe1+ {[%clk 0:00:30]} 43. Kh2 {[%clk 0:00:04]}  Qxe5+ {[%clk 0:00:31]} 44. g3 {[%clk 0:00:05]}  Qe2 {[%clk 0:00:32]} 45. Qf5+ {[%clk 0:00:03]}  Kg8 {[%clk 0:00:32]} 46. Qxd5+ {[%clk 0:00:03]}  Kh8 {[%clk 0:00:32]} 47. Qf5 {[%clk 0:00:02]}  Qxb2 {[%clk 0:00:32]} 48. Qf8+ {[%clk 0:00:02]}  Kh7 {[%clk 0:00:33]} 49. Qf5+ {[%clk 0:00:02]}  Kh8 {[%clk 0:00:33]} 50. c4 {[%clk 0:00:02]}  a3 {[%clk 0:00:33]} 51. Qc8+ {[%clk 0:00:02]}  Kh7 {[%clk 0:00:33]} 52. Qf5+ {[%clk 0:00:03]}  Kh8 {[%clk 0:00:34]} 53. Qf8+ {[%clk 0:00:03]}  Kh7 {[%clk 0:00:34]} 54. Qf5+ {[%clk 0:00:03]}  g6 {[%clk 0:00:34]} 55. Qd7+ {[%clk 0:00:03]}  Kh8 {[%clk 0:00:34]} 56. Qc8+ {[%clk 0:00:02]}  Kg7 {[%clk 0:00:35]} 57. Qc7+ {[%clk 0:00:03]}  Kg8 {[%clk 0:00:35]} 58. Qd8+ {[%clk 0:00:03]}  Kh7 {[%clk 0:00:36]} 59. Qd7+ {[%clk 0:00:03]}  Qg7 {[%clk 0:00:35]} 60. Qa4 {[%clk 0:00:03]}  Qf8 {[%clk 0:00:33]} 61. Qa7+ {[%clk 0:00:02]}  Kh8 {[%clk 0:00:32]} 62. Kg2 {[%clk 0:00:02]}  Qc5 {[%clk 0:00:32]} 63. Qxc5 {[%clk 0:00:02]}  a2 {[%clk 0:00:32]} 64. Qa3 {[%clk 0:00:03]}  a1=Q {[%clk 0:00:32]} 65. Qxa1+ {[%clk 0:00:03]}  Kh7 {[%clk 0:00:32]} 66. Qc3 {[%clk 0:00:04]}  h5 {[%clk 0:00:33]} 67. c5 {[%clk 0:00:05]}  Kh6 {[%clk 0:00:34]} 68. c6 {[%clk 0:00:06]}  h4 {[%clk 0:00:34]} 69. c7 {[%clk 0:00:07]}  hxg3 {[%clk 0:00:35]} 70. c8=Q {[%clk 0:00:08]}  Kh5 {[%clk 0:00:36]} 71. Q8h8+ {[%clk 0:00:08]}  Kg5 {[%clk 0:00:36]} 72. Qce5# {[%clk 0:00:09]} 1-0


[Site "https://www.chess.com"]